[Event "*** Titled Tuesday Blitz"]
[Site "Chess.com"]
[Date "2020.04.21"]
[Round "4"]
[White "Falia-p"]
[Black "DanielRensch"]
[Result "1-0"]
[WhiteElo "2322"]
[BlackElo "2484"]
[TimeControl "180+1"]
[EndTime "10:39:25 PDT"]
[Termination "Falia-p won by resignation"]

1. e4 {[%clk 0:03:00.9]} 1... c5 {[%clk 0:02:56.5]} 2. Nf3 {[%clk 0:03:00.6]}
2... d6 {[%clk 0:02:55.4]} 3. d4 {[%clk 0:03:00.7]} 3... cxd4 {[%clk 0:02:55.3]}
4. Nxd4 {[%clk 0:03:01.6]} 4... Nf6 {[%clk 0:02:54.9]} 5. Nc3 {[%clk 0:03:01.6]}
5... a6 {[%clk 0:02:53.5]} 6. h3 {[%clk 0:03:01.9]} 6... e5 {[%clk 0:02:49.9]}
7. Nb3 {[%clk 0:03:02]} 7... Be6 {[%clk 0:02:50.3]} 8. f4 {[%clk 0:02:53.6]}
8... exf4 {[%clk 0:02:46.3]} 9. Bxf4 {[%clk 0:02:53]} 9... Nc6 {[%clk
0:02:46.8]} 10. Qd2 {[%clk 0:02:48.2]} 10... Ne5 {[%clk 0:02:43.7]} 11. O-O-O
{[%clk 0:02:46.9]} 11... Nfd7 {[%clk 0:02:37.7]} 12. g4 {[%clk 0:02:44.7]} 12...
Rc8 {[%clk 0:02:34.3]} 13. g5 {[%clk 0:02:43.5]} 13... Be7 {[%clk 0:02:30.8]}
14. h4 {[%clk 0:02:43.1]} 14... O-O {[%clk 0:02:25.9]} 15. Be2 {[%clk
0:02:36.2]} 15... Nb6 {[%clk 0:01:58.3]} 16. Na5 {[%clk 0:02:18.4]} 16... Nbc4
{[%clk 0:01:26.4]} 17. Nxc4 {[%clk 0:02:16.3]} 17... Bxc4 {[%clk 0:01:25.3]} 18.
Bxe5 {[%clk 0:02:12.2]} 18... dxe5 {[%clk 0:01:20.5]} 19. Bxc4 {[%clk
0:02:09.5]} 19... Qxd2+ {[%clk 0:01:12.1]} 20. Rxd2 {[%clk 0:02:06.6]} 20...
Rxc4 {[%clk 0:01:13]} 21. Nd5 {[%clk 0:02:03.4]} 21... Bd8 {[%clk 0:00:37.9]}
22. Re2 {[%clk 0:02:02.2]} 22... h6 {[%clk 0:00:34.2]} 23. Rg1 {[%clk
0:01:56.1]} 23... hxg5 {[%clk 0:00:32.7]} 24. hxg5 {[%clk 0:01:57]} 24... g6
{[%clk 0:00:30]} 25. b3 {[%clk 0:01:51.6]} 25... Rd4 {[%clk 0:00:13.7]} 26. Rg3
{[%clk 0:01:41.8]} 26... Kg7 {[%clk 0:00:06.1]} 27. c3 {[%clk 0:01:39.8]} 27...
Rxd5 {[%clk 0:00:03.2]} 28. exd5 {[%clk 0:01:40]} 28... Bc7 {[%clk 0:00:03.3]}
29. Rd3 {[%clk 0:01:38.2]} 29... Bd6 {[%clk 0:00:03.2]} 30. c4 {[%clk
0:01:37.8]} 30... Rh8 {[%clk 0:00:03.4]} 31. Kb2 {[%clk 0:01:34.9]} 31... Rh5
{[%clk 0:00:03.2]} 32. a3 {[%clk 0:01:34.9]} 32... Rxg5 {[%clk 0:00:03]} 33. b4
{[%clk 0:01:35.4]} 33... b6 {[%clk 0:00:03.5]} 34. Rc2 {[%clk 0:01:33.8]} 34...
e4 {[%clk 0:00:03.1]} 35. Re3 {[%clk 0:01:33.8]} 35... f5 {[%clk 0:00:02.9]} 36.
c5 {[%clk 0:01:33.7]} 36... bxc5 {[%clk 0:00:03.8]} 37. bxc5 {[%clk 0:01:33.5]}
37... Bf4 {[%clk 0:00:04.1]} 38. c6 {[%clk 0:01:31.4]} 38... Bxe3 {[%clk
0:00:03.9]} 39. c7 {[%clk 0:01:31.5]} 39... Bd4+ {[%clk 0:00:04.3]} 40. Kb3
{[%clk 0:01:31.4]} 40... Rg3+ {[%clk 0:00:04.4]} 41. Kc4 {[%clk 0:01:30.3]}
41... Bf6 {[%clk 0:00:04.3]} 42. c8=Q {[%clk 0:01:30.1]} 42... Rd3 {[%clk
0:00:04.4]} 43. Qd7+ {[%clk 0:01:29.6]} 43... Kh6 {[%clk 0:00:04.4]} 44. Qd6
{[%clk 0:01:23.9]} 44... Rd4+ {[%clk 0:00:04.4]} 45. Kc5 {[%clk 0:01:23.7]}
45... Kg7 {[%clk 0:00:03.5]} 46. Qxf6+ {[%clk 0:01:21.8]} 46... Kxf6 {[%clk
0:00:03.6]} 47. Kxd4 {[%clk 0:01:22.4]} 1-0

[Event "*** Titled Tuesday Blitz"]
[Site "Chess.com"]
[Date "2020.04.21"]
[Round "4"]
[White "Jeffinho023"]
[Black "shyam"]
[Result "1/2-1/2"]
[WhiteElo "2487"]
[BlackElo "2648"]
[TimeControl "180+1"]
[EndTime "10:39:27 PDT"]
[Termination "Game drawn by repetition"]

1. d4 {[%clk 0:03:00.9]} 1... Nf6 {[%clk 0:02:58.8]} 2. Nf3 {[%clk 0:02:58.5]}
2... g6 {[%clk 0:02:57.9]} 3. g3 {[%clk 0:02:57.6]} 3... b5 {[%clk 0:02:58]} 4.
Bg2 {[%clk 0:02:57.3]} 4... Bb7 {[%clk 0:02:58.5]} 5. O-O {[%clk 0:02:57.8]}
5... Bg7 {[%clk 0:02:58.9]} 6. b3 {[%clk 0:02:55.5]} 6... O-O {[%clk 0:02:58.7]}
7. Bb2 {[%clk 0:02:55.7]} 7... d6 {[%clk 0:02:59.3]} 8. Nbd2 {[%clk 0:02:55.9]}
8... Nbd7 {[%clk 0:02:58.2]} 9. c4 {[%clk 0:02:56]} 9... bxc4 {[%clk 0:02:51.8]}
10. Nxc4 {[%clk 0:02:55.6]} 10... a5 {[%clk 0:02:51.4]} 11. Rc1 {[%clk
0:02:52.7]} 11... c5 {[%clk 0:02:48.7]} 12. e3 {[%clk 0:02:50.3]} 12... Ra7
{[%clk 0:02:42.2]} 13. dxc5 {[%clk 0:02:48.4]} 13... Nxc5 {[%clk 0:02:42.1]} 14.
Bd4 {[%clk 0:02:45.7]} 14... Ra6 {[%clk 0:02:28.3]} 15. Bxc5 {[%clk 0:02:44]}
15... dxc5 {[%clk 0:02:28.8]} 16. Qxd8 {[%clk 0:02:41.7]} 16... Rxd8 {[%clk
0:02:29.7]} 17. Nfe5 {[%clk 0:02:41.9]} 17... Bxg2 {[%clk 0:02:16.3]} 18. Kxg2
{[%clk 0:02:41.2]} 18... a4 {[%clk 0:02:17.2]} 19. Rfd1 {[%clk 0:02:32.5]} 19...
Re8 {[%clk 0:02:04.7]} 20. Nd7 {[%clk 0:02:22.7]} 20... Nxd7 {[%clk 0:02:00.5]}
21. Rxd7 {[%clk 0:02:21.6]} 21... axb3 {[%clk 0:02:01.4]} 22. axb3 {[%clk
0:02:22.4]} 22... Bf6 {[%clk 0:02:00.2]} 23. Rb7 {[%clk 0:02:21]} 23... Rd8
{[%clk 0:01:50.4]} 24. Rc2 {[%clk 0:02:19.4]} 24... Rd3 {[%clk 0:01:46]} 25. Nd2
{[%clk 0:02:15.6]} 25... Ra3 {[%clk 0:01:23.5]} 26. Ne4 {[%clk 0:02:10.5]} 26...
Raxb3 {[%clk 0:01:23.4]} 27. Rxb3 {[%clk 0:02:08.8]} 27... Rxb3 {[%clk
0:01:22.9]} 28. Nxf6+ {[%clk 0:02:08.6]} 28... exf6 {[%clk 0:01:23.8]} 29. Rxc5
{[%clk 0:02:09.3]} 29... Kg7 {[%clk 0:01:22.8]} 30. h4 {[%clk 0:02:09.2]} 30...
f5 {[%clk 0:01:22.8]} 31. Kf3 {[%clk 0:02:08]} 31... Rb4 {[%clk 0:01:22.9]} 32.
Kg2 {[%clk 0:02:06.6]} 32... h6 {[%clk 0:01:23.3]} 33. Kf3 {[%clk 0:02:06.7]}
33... Rb6 {[%clk 0:01:23.7]} 34. Rd5 {[%clk 0:02:06.3]} 34... Kf6 {[%clk
0:01:24.1]} 35. Rc5 {[%clk 0:02:06.3]} 35... Ra6 {[%clk 0:01:24.6]} 36. Rb5
{[%clk 0:02:06.4]} 36... g5 {[%clk 0:01:25.1]} 37. hxg5+ {[%clk 0:02:06.2]}
37... hxg5 {[%clk 0:01:26]} 38. Rc5 {[%clk 0:02:06.4]} 38... g4+ {[%clk
0:01:25.2]} 39. Kg2 {[%clk 0:02:06.5]} 39... Kg5 {[%clk 0:01:25.3]} 40. e4
{[%clk 0:02:06.2]} 40... Rf6 {[%clk 0:01:24.3]} 41. Kf1 {[%clk 0:02:06.2]} 41...
Kg6 {[%clk 0:01:24.4]} 42. exf5+ {[%clk 0:01:55.3]} 42... Rxf5 {[%clk
0:01:25.3]} 43. Rc4 {[%clk 0:01:55.4]} 43... Kg5 {[%clk 0:01:25]} 44. Rc8 {[%clk
0:01:54.2]} 44... Ra5 {[%clk 0:01:24.5]} 45. Rc4 {[%clk 0:01:52.3]} 45... f6
{[%clk 0:01:22.9]} 46. Kg2 {[%clk 0:01:52.4]} 46... Kf5 {[%clk 0:01:22.2]} 47.
Rf4+ {[%clk 0:01:51.3]} 47... Kg5 {[%clk 0:01:22.6]} 48. Rb4 {[%clk 0:01:52.2]}
48... Re5 {[%clk 0:01:22.3]} 49. Rc4 {[%clk 0:01:52.2]} 49... f5 {[%clk
0:01:22.2]} 50. Rc8 {[%clk 0:01:51.9]} 50... Re6 {[%clk 0:01:21.9]} 51. Rg8+
{[%clk 0:01:51.4]} 51... Kf6 {[%clk 0:01:22.2]} 52. Ra8 {[%clk 0:01:52.3]} 52...
Rd6 {[%clk 0:01:21.4]} 53. Rf8+ {[%clk 0:01:51.5]} 53... Ke5 {[%clk 0:01:21.6]}
54. Ra8 {[%clk 0:01:52.4]} 54... Ke4 {[%clk 0:01:20.4]} 55. Ra4+ {[%clk
0:01:51.9]} 55... Rd4 {[%clk 0:01:20.7]} 56. Ra3 {[%clk 0:01:49.4]} 56... Rc4
{[%clk 0:01:19.3]} 57. Re3+ {[%clk 0:01:48.3]} 57... Kd4 {[%clk 0:01:19.7]} 58.
Ra3 {[%clk 0:01:49.2]} 58... Rc3 {[%clk 0:01:19.4]} 59. Ra4+ {[%clk 0:01:46.6]}
59... Rc4 {[%clk 0:01:19.8]} 60. Ra5 {[%clk 0:01:45.1]} 60... Ke4 {[%clk
0:01:19.1]} 61. Ra3 {[%clk 0:01:44.4]} 61... Rb4 {[%clk 0:01:18.3]} 62. Re3+
{[%clk 0:01:44]} 62... Kd5 {[%clk 0:01:17.5]} 63. Ra3 {[%clk 0:01:44.9]} 63...
Rb2 {[%clk 0:01:06]} 64. Ra4 {[%clk 0:01:42.1]} 64... Rc2 {[%clk 0:01:04.6]} 65.
Rf4 {[%clk 0:01:41.4]} 65... Ke5 {[%clk 0:01:04.1]} 66. Ra4 {[%clk 0:01:42.3]}
66... Rd2 {[%clk 0:01:04.1]} 67. Ra5+ {[%clk 0:01:42.3]} 67... Rd5 {[%clk
0:01:04.2]} 68. Ra4 {[%clk 0:01:42.5]} 68... Rd4 {[%clk 0:01:04.4]} 69. Ra5+
{[%clk 0:01:42]} 69... Ke4 {[%clk 0:01:04.8]} 70. Ra3 {[%clk 0:01:42.9]} 70...
Rd3 {[%clk 0:01:00.4]} 71. Ra4+ {[%clk 0:01:42.7]} 71... Rd4 {[%clk 0:01:00.8]}
72. Ra3 {[%clk 0:01:42.8]} 1/2-1/2

[Event "*** Titled Tuesday Blitz"]
[Site "Chess.com"]
[Date "2020.04.21"]
[Round "4"]
[White "viktorskliarov"]
[Black "ViktoriyaTarasova"]
[Result "1-0"]
[WhiteElo "2686"]
[BlackElo "2447"]
[TimeControl "180+1"]
[EndTime "10:39:29 PDT"]
[Termination "viktorskliarov won by resignation"]

1. e4 {[%clk 0:02:57.1]} 1... c5 {[%clk 0:02:59.3]} 2. Nf3 {[%clk 0:02:57.1]}
2... d6 {[%clk 0:02:59.6]} 3. d4 {[%clk 0:02:57.1]} 3... cxd4 {[%clk 0:02:59.7]}
4. Qxd4 {[%clk 0:02:58]} 4... Nf6 {[%clk 0:02:58]} 5. Nc3 {[%clk 0:02:57.9]}
5... Nc6 {[%clk 0:02:57]} 6. Bb5 {[%clk 0:02:58]} 6... Bd7 {[%clk 0:02:57.5]} 7.
Bxc6 {[%clk 0:02:58.4]} 7... Bxc6 {[%clk 0:02:57.5]} 8. Bg5 {[%clk 0:02:58.9]}
8... e6 {[%clk 0:02:57.5]} 9. O-O-O {[%clk 0:02:59.2]} 9... Be7 {[%clk 0:02:58]}
10. Rhe1 {[%clk 0:02:59.8]} 10... Qa5 {[%clk 0:02:57.1]} 11. Kb1 {[%clk
0:03:00]} 11... O-O {[%clk 0:02:53]} 12. Qd2 {[%clk 0:03:00.2]} 12... Qc7 {[%clk
0:02:09.4]} 13. Nd4 {[%clk 0:02:58.6]} 13... a6 {[%clk 0:01:29.4]} 14. f4 {[%clk
0:02:58]} 14... Rfc8 {[%clk 0:01:23.3]} 15. h4 {[%clk 0:02:49]} 15... b5 {[%clk
0:01:19.2]} 16. Nxc6 {[%clk 0:02:03.4]} 16... Qxc6 {[%clk 0:01:18.7]} 17. e5
{[%clk 0:02:04.1]} 17... dxe5 {[%clk 0:01:04.1]} 18. fxe5 {[%clk 0:02:02.5]}
18... b4 {[%clk 0:01:01.9]} 19. exf6 {[%clk 0:01:25.4]} 19... bxc3 {[%clk
0:00:54.3]} 20. Qd4 {[%clk 0:01:25.3]} 20... cxb2 {[%clk 0:00:43.8]} 21. Re2
{[%clk 0:01:19.9]} 21... Rd8 {[%clk 0:00:24.8]} 22. fxe7 {[%clk 0:01:17.8]}
22... Rxd4 {[%clk 0:00:24.4]} 23. Rxd4 {[%clk 0:01:18.7]} 23... Re8 {[%clk
0:00:18.2]} 24. Rd8 {[%clk 0:01:05]} 24... h6 {[%clk 0:00:18.5]} 25. Red2 {[%clk
0:00:57.9]} 25... f6 {[%clk 0:00:15.2]} 26. Rxe8+ {[%clk 0:00:47.9]} 26... Qxe8
{[%clk 0:00:15.8]} 27. Rd8 {[%clk 0:00:48.2]} 27... Kf7 {[%clk 0:00:16.3]} 28.
Rxe8 {[%clk 0:00:48.1]} 28... Kxe8 {[%clk 0:00:16.8]} 29. Be3 {[%clk 0:00:46.9]}
29... Kxe7 {[%clk 0:00:17.3]} 30. Kxb2 {[%clk 0:00:47.7]} 30... e5 {[%clk
0:00:17.3]} 31. g4 {[%clk 0:00:44.7]} 31... f5 {[%clk 0:00:17.7]} 32. gxf5
{[%clk 0:00:44.2]} 32... Kf6 {[%clk 0:00:18.2]} 33. Kc3 {[%clk 0:00:43.6]} 33...
Kxf5 {[%clk 0:00:19.1]} 34. Kd3 {[%clk 0:00:43.8]} 34... g5 {[%clk 0:00:20]} 35.
hxg5 {[%clk 0:00:43.6]} 35... hxg5 {[%clk 0:00:19.8]} 36. c4 {[%clk 0:00:44.2]}
36... e4+ {[%clk 0:00:20]} 37. Kd4 {[%clk 0:00:44.5]} 37... g4 {[%clk
0:00:20.9]} 38. c5 {[%clk 0:00:44.5]} 38... g3 {[%clk 0:00:21.8]} 39. Kd5 {[%clk
0:00:43.7]} 39... g2 {[%clk 0:00:22.7]} 40. c6 {[%clk 0:00:43.8]} 1-0

[Event "*** Titled Tuesday Blitz"]
[Site "Chess.com"]
[Date "2020.04.21"]
[Round "4"]
[White "Fandorine"]
[Black "Firegrizzly"]
[Result "1-0"]
[WhiteElo "2891"]
[BlackElo "2678"]
[TimeControl "180+1"]
[EndTime "10:39:31 PDT"]
[Termination "Fandorine won by resignation"]

1. e4 {[%clk 0:03:00.9]} 1... c5 {[%clk 0:02:58]} 2. Nf3 {[%clk 0:03:00.5]} 2...
Nc6 {[%clk 0:02:57.1]} 3. Bb5 {[%clk 0:03:00.3]} 3... e6 {[%clk 0:02:53.6]} 4.
Bxc6 {[%clk 0:02:59.7]} 4... bxc6 {[%clk 0:02:52.6]} 5. b3 {[%clk 0:03:00.2]}
5... f6 {[%clk 0:02:50]} 6. O-O {[%clk 0:02:47.7]} 6... Ne7 {[%clk 0:02:49.7]}
7. c3 {[%clk 0:02:43.8]} 7... Ng6 {[%clk 0:02:41.8]} 8. d4 {[%clk 0:02:43.6]}
8... cxd4 {[%clk 0:02:35.6]} 9. cxd4 {[%clk 0:02:43.7]} 9... d5 {[%clk
0:02:31.7]} 10. Re1 {[%clk 0:02:37]} 10... Be7 {[%clk 0:02:26]} 11. Ba3 {[%clk
0:02:36.1]} 11... Bxa3 {[%clk 0:02:21.7]} 12. Nxa3 {[%clk 0:02:36]} 12... O-O
{[%clk 0:02:20.2]} 13. Qc1 {[%clk 0:02:29]} 13... Qd7 {[%clk 0:02:08.7]} 14. e5
{[%clk 0:02:25.3]} 14... a5 {[%clk 0:01:59.1]} 15. Qe3 {[%clk 0:02:03.8]} 15...
a4 {[%clk 0:01:58.4]} 16. b4 {[%clk 0:02:04.1]} 16... Ba6 {[%clk 0:01:56.6]} 17.
Rac1 {[%clk 0:02:00.6]} 17... Rac8 {[%clk 0:01:49.9]} 18. exf6 {[%clk
0:01:48.8]} 18... Rxf6 {[%clk 0:01:48.4]} 19. Ne5 {[%clk 0:01:49.1]} 19... Nxe5
{[%clk 0:01:47.6]} 20. Qxe5 {[%clk 0:01:49.7]} 20... Rcf8 {[%clk 0:01:40.1]} 21.
f3 {[%clk 0:01:50.1]} 21... h6 {[%clk 0:01:37.3]} 22. Nb1 {[%clk 0:01:40]} 22...
Bc4 {[%clk 0:01:35.8]} 23. a3 {[%clk 0:01:38.2]} 23... Re8 {[%clk 0:01:28.7]}
24. Nd2 {[%clk 0:01:37.6]} 24... Bb5 {[%clk 0:01:27.4]} 25. Nb1 {[%clk
0:01:00.9]} 25... Rf5 {[%clk 0:01:26.6]} 26. Qg3 {[%clk 0:01:00]} 26... Qa7
{[%clk 0:01:24.1]} 27. Qf2 {[%clk 0:00:59.9]} 27... Qf7 {[%clk 0:01:10.3]} 28.
Nc3 {[%clk 0:00:55.3]} 28... Bc4 {[%clk 0:01:08.5]} 29. Nxa4 {[%clk 0:00:52.1]}
29... Qa7 {[%clk 0:01:07.8]} 30. Nc5 {[%clk 0:00:50.5]} 30... Qxa3 {[%clk
0:01:07.1]} 31. Qd2 {[%clk 0:00:47.4]} 31... e5 {[%clk 0:01:03.5]} 32. Ra1
{[%clk 0:00:44.8]} 32... Qxa1 {[%clk 0:00:52.2]} 33. Rxa1 {[%clk 0:00:44.4]}
33... exd4 {[%clk 0:00:53.1]} 34. Qxd4 {[%clk 0:00:42.4]} 34... Rg5 {[%clk
0:00:52.7]} 35. h4 {[%clk 0:00:36.1]} 35... Rg6 {[%clk 0:00:51.4]} 36. Nd7
{[%clk 0:00:31]} 36... Re2 {[%clk 0:00:49.5]} 37. Ra8+ {[%clk 0:00:31.4]} 37...
Kf7 {[%clk 0:00:47.6]} 38. Ne5+ {[%clk 0:00:31.2]} 38... Rxe5 {[%clk 0:00:46.5]}
39. Qxe5 {[%clk 0:00:31.1]} 39... Re6 {[%clk 0:00:47.4]} 40. Rf8+ {[%clk
0:00:29.4]} 40... Kxf8 {[%clk 0:00:45.8]} 41. Qxe6 {[%clk 0:00:29.6]} 41... d4
{[%clk 0:00:45.6]} 42. Qxc4 {[%clk 0:00:29.8]} 1-0

[Event "*** Titled Tuesday Blitz"]
[Site "Chess.com"]
[Date "2020.04.21"]
[Round "4"]
[White "talman67"]
[Black "Durarbayli"]
[Result "0-1"]
[WhiteElo "2558"]
[BlackElo "2814"]
[TimeControl "180+1"]
[EndTime "10:39:31 PDT"]
[Termination "Durarbayli won by resignation"]

1. e4 {[%clk 0:02:26.5]} 1... c5 {[%clk 0:02:59]} 2. Nf3 {[%clk 0:02:26.6]} 2...
d6 {[%clk 0:02:59.3]} 3. d4 {[%clk 0:02:26.9]} 3... cxd4 {[%clk 0:02:59.8]} 4.
Nxd4 {[%clk 0:02:27.8]} 4... Nf6 {[%clk 0:03:00.4]} 5. Nc3 {[%clk 0:02:28.2]}
5... Nc6 {[%clk 0:03:01]} 6. Bg5 {[%clk 0:02:26.4]} 6... Qb6 {[%clk 0:03:00.9]}
7. Bxf6 {[%clk 0:02:22.7]} 7... gxf6 {[%clk 0:03:00.5]} 8. Nb3 {[%clk
0:02:22.9]} 8... f5 {[%clk 0:03:00.8]} 9. exf5 {[%clk 0:02:21.4]} 9... Bxf5
{[%clk 0:02:58.8]} 10. Bd3 {[%clk 0:02:21.9]} 10... Bg6 {[%clk 0:02:53.9]} 11.
O-O {[%clk 0:02:21.8]} 11... Bg7 {[%clk 0:02:53.4]} 12. Nd5 {[%clk 0:02:19.7]}
12... Qd8 {[%clk 0:02:52.8]} 13. c3 {[%clk 0:02:17.7]} 13... e6 {[%clk
0:02:51.5]} 14. Ne3 {[%clk 0:02:04.8]} 14... d5 {[%clk 0:02:47.6]} 15. f4 {[%clk
0:02:01.6]} 15... Qb6 {[%clk 0:02:46.1]} 16. Qd2 {[%clk 0:01:32.7]} 16... O-O-O
{[%clk 0:02:42.7]} 17. Kh1 {[%clk 0:01:30.7]} 17... Kb8 {[%clk 0:02:02.6]} 18.
f5 {[%clk 0:01:29.2]} 18... Bh5 {[%clk 0:01:52]} 19. g4 {[%clk 0:01:13.4]} 19...
Bh6 {[%clk 0:01:47.6]} 20. gxh5 {[%clk 0:00:31.7]} 20... Bxe3 {[%clk 0:01:46.6]}
21. Qg2 {[%clk 0:00:30.5]} 21... Rhg8 {[%clk 0:01:41.9]} 22. Qf3 {[%clk
0:00:29.5]} 22... e5 {[%clk 0:01:41.8]} 23. Rae1 {[%clk 0:00:26.7]} 23... Bh6
{[%clk 0:01:40.6]} 24. Rg1 {[%clk 0:00:24.5]} 24... e4 {[%clk 0:01:29.6]} 25.
Bxe4 {[%clk 0:00:24.7]} 25... dxe4 {[%clk 0:01:25.9]} 26. Qxe4 {[%clk
0:00:25.6]} 26... a6 {[%clk 0:01:14.8]} 27. Rxg8 {[%clk 0:00:20.9]} 27... Rxg8
{[%clk 0:01:15.7]} 28. Qd5 {[%clk 0:00:21.8]} 28... Qf2 {[%clk 0:01:04.5]} 29.
Qe4 {[%clk 0:00:15.9]} 29... Bf4 {[%clk 0:00:59.8]} 30. Qe2 {[%clk 0:00:08.6]}
30... Rg1+ {[%clk 0:00:55.7]} 31. Rxg1 {[%clk 0:00:08]} 31... Qxe2 {[%clk
0:00:55.3]} 0-1

[Event "*** Titled Tuesday Blitz"]
[Site "Chess.com"]
[Date "2020.04.21"]
[Round "4"]
[White "zurzan"]
[Black "abhijeetgupta1016"]
[Result "0-1"]
[WhiteElo "2006"]
[BlackElo "2903"]
[TimeControl "180+1"]
[EndTime "10:39:31 PDT"]
[Termination "abhijeetgupta1016 won on time"]

1. f4 {[%clk 0:03:00.9]} 1... c5 {[%clk 0:02:59]} 2. Nf3 {[%clk 0:03:00.4]} 2...
Nc6 {[%clk 0:02:58.3]} 3. g3 {[%clk 0:03:01.3]} 3... h5 {[%clk 0:02:54.8]} 4.
Bg2 {[%clk 0:03:02.2]} 4... Nh6 {[%clk 0:02:54.8]} 5. O-O {[%clk 0:03:03.1]}
5... g6 {[%clk 0:02:54.8]} 6. h4 {[%clk 0:03:01.5]} 6... Bg7 {[%clk 0:02:54.5]}
7. c3 {[%clk 0:03:00.9]} 7... d5 {[%clk 0:02:53.1]} 8. d3 {[%clk 0:02:59.8]}
8... d4 {[%clk 0:02:51.7]} 9. Qe1 {[%clk 0:02:59]} 9... O-O {[%clk 0:02:51.4]}
10. Na3 {[%clk 0:02:55.8]} 10... Qc7 {[%clk 0:02:50.2]} 11. Nb5 {[%clk
0:02:53.3]} 11... Qb6 {[%clk 0:02:48.5]} 12. a4 {[%clk 0:02:53]} 12... a6 {[%clk
0:02:45.2]} 13. Na3 {[%clk 0:02:50.5]} 13... Be6 {[%clk 0:02:45.5]} 14. c4
{[%clk 0:02:45]} 14... Qc7 {[%clk 0:02:43.7]} 15. Nc2 {[%clk 0:02:43.4]} 15...
a5 {[%clk 0:02:41.1]} 16. b3 {[%clk 0:02:38.4]} 16... Rae8 {[%clk 0:02:25.6]}
17. Rb1 {[%clk 0:02:37.2]} 17... Bg4 {[%clk 0:02:23.2]} 18. Qd1 {[%clk
0:02:25.5]} 18... e5 {[%clk 0:02:22.1]} 19. e4 {[%clk 0:02:16.3]} 19... dxe3
{[%clk 0:02:20.1]} 20. Nxe3 {[%clk 0:02:15.2]} 20... exf4 {[%clk 0:02:20.3]} 21.
Nxg4 {[%clk 0:02:11.7]} 21... hxg4 {[%clk 0:02:19.6]} 22. Bxf4 {[%clk
0:02:11.3]} 22... Qd7 {[%clk 0:02:12.4]} 23. Ng5 {[%clk 0:02:04.6]} 23... Nf5
{[%clk 0:02:11.9]} 24. Ne4 {[%clk 0:01:57.7]} 24... b6 {[%clk 0:02:06.5]} 25.
Qxg4 {[%clk 0:01:52.5]} 25... Qxd3 {[%clk 0:01:57.8]} 26. Rfd1 {[%clk
0:01:46.3]} 26... Qc2 {[%clk 0:01:54.8]} 27. Rbc1 {[%clk 0:01:19.2]} 27... Qxb3
{[%clk 0:01:52.3]} 28. Nd6 {[%clk 0:01:09.6]} 28... Nxd6 {[%clk 0:01:45.7]} 29.
Bxd6 {[%clk 0:01:09.5]} 29... Ne5 {[%clk 0:01:40.8]} 30. Qh3 {[%clk 0:00:22.6]}
30... Nxc4 {[%clk 0:01:31]} 31. Bxf8 {[%clk 0:00:21.9]} 31... Rxf8 {[%clk
0:01:31.7]} 32. Bd5 {[%clk 0:00:19.1]} 32... Qe3+ {[%clk 0:01:30.9]} 33. Kh1
{[%clk 0:00:17.1]} 33... Ne5 {[%clk 0:01:28]} 34. Qg2 {[%clk 0:00:15.8]} 34...
Ng4 {[%clk 0:01:25.9]} 35. Rf1 {[%clk 0:00:08.8]} 35... Nf6 {[%clk 0:01:20.7]}
36. Bc4 {[%clk 0:00:03.4]} 36... Nh5 {[%clk 0:01:19.8]} 37. Bxf7+ {[%clk
0:00:01.6]} 37... Rxf7 {[%clk 0:01:18.7]} 38. Rxf7 {[%clk 0:00:01.4]} 38...
Qxc1+ {[%clk 0:01:15]} 39. Kh2 {[%clk 0:00:02.3]} 39... Kxf7 {[%clk 0:01:09.2]}
40. Qd5+ {[%clk 0:00:03.2]} 40... Ke7 {[%clk 0:01:08.6]} 0-1

[Event "*** Titled Tuesday Blitz"]
[Site "Chess.com"]
[Date "2020.04.21"]
[Round "4"]
[White "patzerplay"]
[Black "pomeraniandog"]
[Result "1-0"]
[WhiteElo "2378"]
[BlackElo "1767"]
[TimeControl "180+1"]
[EndTime "10:39:31 PDT"]
[Termination "patzerplay won by checkmate"]

1. e4 {[%clk 0:02:00.9]} 1... e6 {[%clk 0:02:54.7]} 2. d4 {[%clk 0:02:00.9]}
2... d5 {[%clk 0:02:54.8]} 3. Nc3 {[%clk 0:02:01.3]} 3... Nf6 {[%clk 0:02:52.4]}
4. e5 {[%clk 0:02:01.7]} 4... Nfd7 {[%clk 0:02:51.1]} 5. Nce2 {[%clk 0:02:02.2]}
5... c5 {[%clk 0:02:44.9]} 6. c3 {[%clk 0:02:02.5]} 6... f6 {[%clk 0:02:44.6]}
7. f4 {[%clk 0:02:02.1]} 7... Nc6 {[%clk 0:02:44.6]} 8. Nf3 {[%clk 0:02:01.7]}
8... Qa5 {[%clk 0:02:39.5]} 9. a3 {[%clk 0:01:15]} 9... c4 {[%clk 0:01:55.2]}
10. h4 {[%clk 0:01:03]} 10... Be7 {[%clk 0:01:37]} 11. f5 {[%clk 0:00:42.4]}
11... exf5 {[%clk 0:01:26.5]} 12. Nf4 {[%clk 0:00:42.9]} 12... Nb6 {[%clk
0:01:13.3]} 13. Nh5 {[%clk 0:00:38.3]} 13... g6 {[%clk 0:00:41.9]} 14. Nxf6+
{[%clk 0:00:35.7]} 14... Bxf6 {[%clk 0:00:41.2]} 15. exf6 {[%clk 0:00:36.6]}
15... Be6 {[%clk 0:00:40.9]} 16. Ng5 {[%clk 0:00:34.6]} 16... O-O-O {[%clk
0:00:31.3]} 17. Nxe6 {[%clk 0:00:31]} 17... Rde8 {[%clk 0:00:22.8]} 18. Be2
{[%clk 0:00:12.7]} 18... Rxe6 {[%clk 0:00:20.9]} 19. f7 {[%clk 0:00:12.7]} 19...
Nd8 {[%clk 0:00:19.9]} 20. Bf4 {[%clk 0:00:09]} 20... Nxf7 {[%clk 0:00:19.6]}
21. O-O {[%clk 0:00:09.1]} 21... Qa4 {[%clk 0:00:19.6]} 22. Qd2 {[%clk
0:00:08.7]} 22... Qb3 {[%clk 0:00:19.3]} 23. Bg3 {[%clk 0:00:08.3]} 23... Na4
{[%clk 0:00:19.5]} 24. Bd1 {[%clk 0:00:07.9]} 24... Qxb2 {[%clk 0:00:19]} 25.
Qf4 {[%clk 0:00:08.5]} 25... Qb6 {[%clk 0:00:18.1]} 26. Bxa4 {[%clk 0:00:08.3]}
26... Rd8 {[%clk 0:00:17]} 27. Qb8# {[%clk 0:00:08.2]} 1-0